Cogmind - Beta 11 X6 @@@ ROGUE MODE // 2021.08.07 @ 14:15:58 Player: Olga Result: Destroyed by S-43 Plague with Heavy Machine Gun Performance ------------- Evolutions (7) 3500 Regions Visited (15) 3000 Robots Destroyed (119) 595 Value Destroyed (5611) 5611 Prototype IDs (29) 580 Alien Tech Used (0) 0 Bonus (311) 311 TOTAL SCORE: 13597 Bonus ------- High Alert Combat Kills 11 Aligned with FarCom 300 Cogmind --------- Core Integrity 0/1300 Matter 290/300 Energy 24/100 System Corruption 51% Temperature Cool (0) Movement Core (150) Ox2 Location -3/Research Parts ------- > --- POWER (2) -------- (None) > --- PROPULSION (7) --- (None) > --- UTILITY (9) ------ Advanced Heat Sink Advanced Heat Sink Advanced Target Analyzer > --- WEAPON (3) ------- Dispersion Rifle > --- INVENTORY (5) ---- Particle Reactor Dispersion Rifle Dispersion Rifle Peak State ------------ > --- POWER ------------ Light Antimatter Reactor > --- PROPULSION ------- Improved Antigrav System Improved Antigrav System Improved Antigrav System Improved Antigrav System Antigrav Array Q-thruster > --- UTILITY ---------- Advanced Heat Sink Advanced Heat Sink Advanced Heat Sink Energy Well Advanced Target Analyzer Stasis Canceller Advanced Force Field Drone Bay > --- WEAPON ----------- Plasma Rifle Dispersion Rifle Dispersion Rifle > --- INVENTORY -------- Gamma Rifle Dispersion Rifle Dispersion Rifle Dispersion Rifle Dispersion Rifle [Rating: 129] Favorites ----------- Power Light Nuclear Core Engine Ion Engine Power Core Light Nuclear Core Reactor Antimatter Reactor Propulsion Aluminum Leg Treads Light Treads Leg Aluminum Leg Hover Unit Improved Antigrav System Flight Unit Xenon Bombardment Thruster Utility Improved Signal Interpreter Device Improved Weapon Cycler Storage Large Storage Unit Processor Improved Signal Interpreter Hackware Makeshift System Shield Protection Layered Light Armor Plating Weapon Enhanced Autogun Energy Gun Plasma Rifle Ballistic Gun Enhanced Autogun Ballistic Cannon Advanced Assault Cannon Launcher Heavy Missile Launcher Build | -11 -10 -10 -9 -9 -9 -8 -8 -7 -7 -7 -6 -5 -4 -4 -3 ------- Run | Scr Mat Min Mat Min Exi Min Mat Fac Low Low Fac Fac Fac Upp Res Slots Evolved 14 | . . . 2 . . . 2 2 . . 2 2 2 . 2 Power 1 | . . . . . . . . . . . . 1 . . . Propulsion 5 | . . . 2 . . . . . . . 1 1 . . 1 Utility 7 | . . . . . . . 2 2 . . 1 . 1 . 1 Weapon 1 | . . . . . . . . . . . . . 1 . . Parts Attached 202 | 6 8 5 9 6 1 2 12 8 17 4 10 11 28 10 65 Power 19 | 1 1 . . . . . 2 1 1 . 1 1 4 . 7 Engine 4 | 1 1 . . . . . 1 . . . . . . . 1 Core 9 | . . . . . . . 1 1 1 . 1 1 3 . 1 Reactor 6 | . . . . . . . . . . . . . 1 . 5 Propulsion 61 | 2 1 2 4 2 . . 4 4 3 1 2 3 8 1 24 Treads 10 | . . . . . . . . . . . 2 . 1 . 7 Leg 32 | 2 1 2 4 2 . . 4 4 3 1 . 3 1 1 4 Wheel . | . . . . . . . . . . . . . . . . Hover 14 | . . . . . . . . . . . . . 6 . 8 Flight 5 | . . . . . . . . . . . . . . . 5 Utility 66 | 1 4 1 . 1 1 . 4 3 6 3 6 4 11 6 15 Device 38 | . 3 1 . . . . 1 3 2 3 3 3 5 4 10 Storage 10 | 1 1 . . . 1 . 1 . . . . 1 1 1 3 Processor 4 | . . . . 1 . . . . . . 1 . . . 2 Hackware 3 | . . . . . . . . . . . 1 . 2 . . Protection 11 | . . . . . . . 2 . 4 . 1 . 3 1 . Artifact . | . . . . . . . . . . . . . . . . Weapon 56 | 2 2 2 5 3 . 2 2 . 7 . 1 3 5 3 19 Energy Gun 13 | . . . . . . . . . . . . . . . 13 Energy Cannon . | . . . . . . . . . . . . . . . . Ballistic Gun 30 | 2 2 1 4 2 . 1 1 . 5 . 1 2 2 2 5 Ballistic Cannon 5 | . . . . . . . . . . . . . 3 1 1 Launcher 8 | . . 1 1 1 . 1 1 . 2 . . 1 . . . Special Weapon . | . . . . . . . . . . . . . . . . Impact Weapon . | . . . . . . . . . . . . . . . . Slashing Weapon . | . . . . . . . . . . . . . . . . Piercing Weapon . | . . . . . . . . . . . . . . . . Special Melee Weapon . | . . . . . . . . . . . . . . . . Unidentified Prototypes 4 | . . 1 2 . . . . . . . . . . . 1 Corrupted Parts 7 | . . . . . . . . . . . . . . . 7 System Corruption 36 | . . . . . . . . . . . . . . . 36 Parts Lost 84 | . 1 . . . . . 3 1 3 1 4 3 8 16 44 Power 11 | . . . . . . . . 1 . . 1 2 . . 7 Propulsion 30 | . 1 . . . . . 2 . 2 1 2 . 2 5 15 Utility 24 | . . . . . . . 1 . . . 1 . 5 8 9 Weapon 19 | . . . . . . . . . 1 . . 1 1 3 13 Highest Loss Streak 16 | . 1 . . . . . 1 1 2 1 1 3 3 11 16 Average Slot Usage (%) 84 | . 93 100 99 100 100 100 98 99 88 91 81 83 79 55 52 Engine 3 | . 14 14 11 11 11 11 5 . . . . . . . . Core 3 | . . . . . . . 3 6 7 7 5 6 5 4 1 Treads 1 | . . . . . . . . . . . 2 11 4 . 6 Leg 22 | . 26 28 44 44 44 44 35 30 27 29 16 12 8 . 1 Hover 2 | . . . . . . . . . . . . . 9 12 7 Device 10 | . 8 14 11 7 . . . 14 10 15 14 11 10 12 13 Storage 9 | . 14 14 11 11 11 11 16 15 14 7 6 9 7 4 2 Processor 5 | . . . . 3 11 11 9 7 7 7 6 5 5 3 3 Hackware 1 | . . . . . . . . . . . 6 5 7 4 . Protection 3 | . . . . . . . 8 7 7 7 6 5 5 . . Ballistic Gun 13 | . 28 27 21 21 22 22 17 15 8 15 12 10 9 3 . Naked Turns . | . . . . . . . . . . . . . . . . Heaviest Build 68 | 13 17 20 25 25 31 31 43 45 60 66 51 52 66 68 61 Greatest Support 225 | 20 20 20 40 40 40 40 40 45 60 60 55 50 74 65 225 Greatest Overweight (x) 7 | 3 1 . . . . . 1 1 1 1 1 1 2 4 7 Average Overweight (x) . | 1 . . . . . . . . . . . . . . . Largest Inventory Capacity 20 | 8 8 8 8 8 15 15 15 15 15 15 15 15 20 15 5 Average Capacity 12 | 7 8 8 8 8 12 15 15 15 15 15 15 15 15 13 5 Most Carried 15 | 8 8 8 8 8 12 15 15 15 15 15 15 15 15 14 5 Average Carried 11 | 4 7 7 7 7 8 14 14 14 14 14 13 13 14 11 3 Final Capacity 15 | 8 8 8 8 8 15 15 15 15 15 15 15 15 15 5 5 Final Carried 15 | 6 8 8 8 8 9 15 15 15 14 14 15 14 15 5 3 Class Distribution -------------------- 55% | Scavenger-Mutant 19% | Mutant 10% | Scavenger-Skirmisher 5% | Skirmisher Dominant Class ---------------- Mutant | -10/Materials Mutant | -10/Mines Scavenger-Mutant | -9/Materials Scavenger-Mutant | -9/Mines Scavenger-Mutant | -9/Exiles Scavenger-Mutant | -8/Mines Scavenger-Mutant | -8/Materials Scavenger-Mutant | -7/Factory Scavenger-Mutant | -7/Lower Caves Scavenger-Mutant | -7/Lower Caves Skirmisher | -6/Factory Scavenger-Skirmisher | -5/Factory Scavenger-Skirmisher | -4/Factory Gunner | -4/Upper Caves Mutant | -3/Research Resources | -11 -10 -10 -9 -9 -9 -8 -8 -7 -7 -7 -6 -5 -4 -4 -3 ----------- Run | Scr Mat Min Mat Min Exi Min Mat Fac Low Low Fac Fac Fac Upp Res Matter Collected 4545 | 194 141 159 198 181 45 91 349 225 294 217 178 109 755 379 1030 Remotely . | . . . . . . . . . . . . . . . . Salvage Created 5170 | . 201 143 252 172 . 127 530 304 189 198 314 141 560 319 1720 Parts 280 | . 10 6 14 17 . 8 45 24 5 5 13 9 37 13 74 Haulers Intercepted . | . . . . . . . . . . . . . . . . Recyclers Shooed 2 | . 1 . . . . . . . . . . . . . 1 Parts Field Recycled . | . . . . . . . . . . . . . . . . Retrieved Matter . | . . . . . . . . . . . . . . . . Parts Self-Destructed 27 | . . . . . . . . . 9 5 . . . 13 . Prevented . | . . . . . . . . . . . . . . . . Kills | -11 -10 -10 -9 -9 -9 -8 -8 -7 -7 -7 -6 -5 -4 -4 -3 ------- Run | Scr Mat Min Mat Min Exi Min Mat Fac Low Low Fac Fac Fac Upp Res Combat Hostiles Destroyed 112 | . 4 5 7 9 . 3 13 6 7 4 6 6 12 5 25 Guns 86 | . 4 4 7 7 . 2 11 6 3 4 6 2 10 . 20 Cannons 7 | . . . . . . . . . . . . . 2 5 . AOE 14 | . . 1 . 2 . 1 2 . 4 . . 4 . . . Classes Destroyed 10 | . 2 1 . . . . 3 2 1 . . . . 1 . Worker 3 | . . . . . . . 1 . . . . . . . 2 Builder 2 | . . . . . . . 1 1 . . . . . . . Watcher 2 | . 1 . . . . . 1 . . . . . . . . Swarmer 26 | . . 2 . 6 . . 6 . 3 . . 5 . . 4 Grunt 46 | . 4 3 7 3 . 3 5 2 3 4 2 . . 1 9 Duelist 1 | . . . . . . . . . . . . . . 1 . Sentry 10 | . . . . . . . 2 . . . 3 1 2 1 1 Hunter 8 | . . . . . . . . 2 . . . . . 2 4 Programmer 20 | . . . . . . . . 2 . . 1 . 10 . 7 Behemoth 1 | . . . . . . . . . 1 . . . . . . Best Kill Streak 10 | . 5 2 4 3 . 3 5 2 3 3 3 5 3 3 10 Combat Bots Only 9 | . 4 2 4 3 . 3 4 1 3 3 3 5 3 3 9 Max Kills in Single Turn 4 | . 1 2 1 1 . 1 3 1 2 1 1 4 1 1 1 Gunslinging . | . . . . . . . . . . . . . . . . Exploded 4 | . . 1 . 1 . 1 2 . 2 . . 4 . . . Melee . | . . . . . . . . . . . . . . . . Uniques/NPCs Destroyed . | . . . . . . . . . . . . . . . . Combat | -11 -10 -10 -9 -9 -9 -8 -8 -7 -7 -7 -6 -5 -4 -4 -3 -------- Run | Scr Mat Min Mat Min Exi Min Mat Fac Low Low Fac Fac Fac Upp Res Damage Taken 17463 | . 413 317 182 326 . 47 662 544 706 330 689 501 990 2267 9489 Core 2818 | . 117 10 23 25 . . 95 26 112 18 115 32 88 841 1316 Absorbed by Shields 130 | . . . . . . . . 39 91 . . . . . . Reduced by Siege Mode 636 | . . . . . . . . . . . . . . . 636 Core Remaining (%) 74 | 100 . 49 . . . 88 82 . . 77 86 96 . 19 . Volleys Fired 365 | . 17 18 18 18 . 3 38 26 17 16 22 9 33 23 107 Largest 3 | . 2 2 2 2 . 2 2 2 2 2 2 2 3 3 3 Hottest 251 | . 40 50 50 58 . 58 50 50 64 60 60 67 147 160 251 Shots Fired 712 | . 34 36 36 36 . 6 74 52 30 32 44 16 96 66 154 Gun 616 | . 34 35 36 30 . 5 72 52 21 32 44 15 75 19 146 Cannon 76 | . . . . . . . . . . . . . 21 47 8 Launcher 20 | . . 1 . 6 . 1 2 . 9 . . 1 . . . Special . | . . . . . . . . . . . . . . . . Kinetic 595 | . 34 35 36 30 . 5 72 52 21 32 44 15 96 66 57 Thermal 69 | . . . . . . . . . . . . . . . 69 Explosive 20 | . . 1 . 6 . 1 2 . 9 . . 1 . . . Electromagnetic 28 | . . . . . . . . . . . . . . . 28 Robot Hit Streak 37 | . 11 14 15 7 . 6 13 17 5 5 7 7 14 3 37 Robot Miss Streak 10 | . 3 4 3 3 . 1 4 3 4 3 2 7 10 6 3 Penetration Max 1 | . . . . . . . . . . . . 1 1 . 1 Secondary Targets 9 | . 2 . . . . . 2 . 1 2 . . . . 2 Max Gunslinging Chain 1 | . 1 . . . . . 1 . 1 1 . . . . 1 Shots Hit Robots 473 | . 25 24 27 18 . 5 42 35 18 21 29 15 66 24 124 Core Hits 248 | . 10 13 8 9 . 6 24 12 16 8 21 17 41 10 53 Critical Kills 5 | . . . . . . . . . . . . . 1 3 1 Critical Parts Destroyed 8 | . . . . . . . . . . . . . 6 1 1 Critical Strikes 23 | . . . . . . . . . . . . . 8 6 9 Burn 2 | . . . . . . . . . . . . . . . 2 Destroy 14 | . . . . . . . . . . . . . 7 5 2 Blast 3 | . . . . . . . . . . . . . 1 1 1 Corrupt 4 | . . . . . . . . . . . . . . . 4 Melee Attacks . | . . . . . . . . . . . . . . . . Impact . | . . . . . . . . . . . . . . . . Slashing . | . . . . . . . . . . . . . . . . Piercing . | . . . . . . . . . . . . . . . . Sneak Attacks . | . . . . . . . . . . . . . . . . Combat Hostiles . | . . . . . . . . . . . . . . . . Follow-up Attacks . | . . . . . . . . . . . . . . . . Damage Inflicted 12031 | . 278 275 492 495 . 183 1096 611 948 478 624 626 1749 561 3615 Guns 9223 | . 278 191 492 315 . 69 799 611 190 478 624 303 1419 166 3288 Cannons 1011 | . . . . . . . . . . . . . 330 395 286 Explosions 1756 | . . 84 . 180 . 114 297 . 758 . . 323 . . . Melee . | . . . . . . . . . . . . . . . . Ramming 41 | . . . . . . . . . . . . . . . 41 Kinetic 8336 | . 278 191 492 315 . 69 799 611 190 478 624 303 1749 561 1676 Thermal 1335 | . . . . . . . . . . . . . . . 1335 Explosive 1756 | . . 84 . 180 . 114 297 . 758 . . 323 . . . Electromagnetic 563 | . . . . . . . . . . . . . . . 563 Impact . | . . . . . . . . . . . . . . . . Slashing . | . . . . . . . . . . . . . . . . Piercing . | . . . . . . . . . . . . . . . . Highest Corruption 51 | . . . . . . . . 2 2 2 . . 8 34 51 Average Corruption 8 | . . . . . . . . 1 2 2 . . 4 14 34 Corruption Purged . | . . . . . . . . . . . . . . . . Effects 109 | . . . . . . . . 5 9 6 . . 24 19 46 Message Errors 27 | . . . . . . . . 3 3 1 . . 6 4 10 Matter Fused 17 | . . . . . . . . . . . . . 6 5 6 Heat Flow Errors 11 | . . . . . . . . 1 . 1 . . 3 1 5 Energy Discharges 13 | . . . . . . . . . 4 2 . . 4 1 2 Parts Rejected 2 | . . . . . . . . . . . . . 1 1 . Data Loss (minor) 18 | . . . . . . . . 1 2 2 . . 2 2 9 Data Loss (major) 1 | . . . . . . . . . . . . . . . 1 Misfires 6 | . . . . . . . . . . . . . 1 2 3 Misdirections 9 | . . . . . . . . . . . . . . 3 6 Weapon Failures 5 | . . . . . . . . . . . . . 1 . 4 Overload Shots . | . . . . . . . . . . . . . . . . Overflow Damage 54 | . . . . . . . 38 . 16 . . . . . . Projectiles . | . . . . . . . . . . . . . . . . Explosions 54 | . . . . . . . 38 . 16 . . . . . . Melee . | . . . . . . . . . . . . . . . . Knockbacks 16 | . . . . . . . . . . . . . 5 4 7 Impact . | . . . . . . . . . . . . . . . . Kinetic 16 | . . . . . . . . . . . . . 5 4 7 Secondary . | . . . . . . . . . . . . . . . . Self-Inflicted Damage 116 | . . . . 77 . . . . 36 . . . . . 3 Shots 4 | . . . . 3 . . . . 1 . . . . . . Rammed 22 | . . . . . . . . . . . . . . . 22 Targets Rammed 22 | . . . . . . . . . . . . . . . 22 Kicked . | . . . . . . . . . . . . . . . . Crushed . | . . . . . . . . . . . . . . . . Highest Temperature 911 | . 65 63 55 68 . 30 83 203 48 291 41 64 536 911 456 Average Temperature 116 | . 37 33 23 19 . 12 31 27 24 139 12 19 99 414 107 Received Heat Transfer 3022 | . 225 180 99 63 . 27 279 81 75 180 231 63 54 30 1435 Effects 48 | . . . . . . . . . . . . . 9 37 2 Shutdowns 12 | . . . . . . . . . . . . . 2 10 . Energy Bleed 3 | . . . . . . . . . . . . . . 3 . Interference 5 | . . . . . . . . . . . . . 4 1 . Matter Decay 8 | . . . . . . . . . . . . . 1 7 . Short Circuit 5 | . . . . . . . . . . . . . . 4 1 Damage (minor) 5 | . . . . . . . . . . . . . 2 2 1 Damage (major) 7 | . . . . . . . . . . . . . . 7 . Damage (core) 3 | . . . . . . . . . . . . . . 3 . Siege Activations 5 | . . . . . . . . . . . . . . . 5 Total Turns 103 | . . . . . . . . . . . . . . . 103 Longest Duration 42 | . . . . . . . . . . . . . . . 42 Robots Corrupted 3 | . . . . . . . . . . . . . . . 3 Combat Hostiles 3 | . . . . . . . . . . . . . . . 3 Parts Fried 5 | . . . . . . . . . . . . . . . 5 Impact Corruptions . | . . . . . . . . . . . . . . . . Robots Melted 2 | . . . . . . . . . . . . . . . 2 Combat Hostiles 2 | . . . . . . . . . . . . . . . 2 Parts Melted 17 | . . . . . . . . . . . . . . . 17 Heat Transferred 2855 | . . . . . . . . . . . . . . . 2855 Parts Sabotaged . | . . . . . . . . . . . . . . . . Parts Stolen . | . . . . . . . . . . . . . . . . Parts Stripped . | . . . . . . . . . . . . . . . . Power Chain Reactions . | . . . . . . . . . . . . . . . . Missiles Intercepted . | . . . . . . . . . . . . . . . . Alert | -11 -10 -10 -9 -9 -9 -8 -8 -7 -7 -7 -6 -5 -4 -4 -3 ------- Run | Scr Mat Min Mat Min Exi Min Mat Fac Low Low Fac Fac Fac Upp Res Peak Influence 470 | . 136 152 198 346 . 96 430 470 . . 276 169 174 . 171 Initial 107 | . . 52 . 76 . . . 107 . . 65 53 72 . 40 Average 121 | . 90 116 85 215 . 50 226 206 . . 108 105 84 . 69 Maximum Alert Level 2 | . . . . 1 . . 2 2 . . 1 . . . . Low Security (%) 84 | 100 100 100 100 61 . 100 32 59 . . 85 100 100 . 100 Level 1 12 | . . . . 38 . . 53 33 . . 14 . . . . Level 2 2 | . . . . . . . 14 7 . . . . . . . Level 3 . | . . . . . . . . . . . . . . . . Level 4 . | . . . . . . . . . . . . . . . . Level 5 . | . . . . . . . . . . . . . . . . High Security . | . . . . . . . . . . . . . . . . Max Security . | . . . . . . . . . . . . . . . . Squads Dispatched 23 | . 1 . 3 . . . 2 6 . . 2 1 4 . 4 Investigation 5 | . 1 . . . . . 1 2 . . . . . . 1 Extermination 9 | . . . . . . . . 2 . . 1 . 3 . 3 Reinforcement 9 | . . . 3 . . . 1 2 . . 1 1 1 . . Assault . | . . . . . . . . . . . . . . . . Garrison . | . . . . . . . . . . . . . . . . Intercept . | . . . . . . . . . . . . . . . . Construction Impeded . | . . . . . . . . . . . . . . . . Haulers Reinforced 1 | . . . . . . . . . . . . . 1 . . Active Scanning Responses . | . . . . . . . . . . . . . . . . Cargo Convoy Interrupts 1 | . . . . . . . . 1 . . . . . . . Stealth | -11 -10 -10 -9 -9 -9 -8 -8 -7 -7 -7 -6 -5 -4 -4 -3 --------- Run | Scr Mat Min Mat Min Exi Min Mat Fac Low Low Fac Fac Fac Upp Res Distress Signals 5 | . 1 . 1 . . . . 1 . . . 1 . . 1 Communications Jammed . | . . . . . . . . . . . . . . . . Distress Signals . | . . . . . . . . . . . . . . . . Times Spotted 171 | . 8 6 11 10 . 3 19 12 11 8 11 9 12 12 39 Peak Tracking Total 11 | . 5 2 4 4 . 3 5 2 3 3 3 5 2 7 11 Tactical Retreats 20 | . . . . . . . 2 3 3 2 3 . 1 2 4 Traps | -11 -10 -10 -9 -9 -9 -8 -8 -7 -7 -7 -6 -5 -4 -4 -3 ------- Run | Scr Mat Min Mat Min Exi Min Mat Fac Low Low Fac Fac Fac Upp Res Traps Triggered 8 | . 1 . . . . . . 3 . . 1 . 1 1 1 Indirectly . | . . . . . . . . . . . . . . . . Trap Hack Attempts . | . . . . . . . . . . . . . . . . Triggered . | . . . . . . . . . . . . . . . . Disarmed . | . . . . . . . . . . . . . . . . Reprogrammed . | . . . . . . . . . . . . . . . . Reused . | . . . . . . . . . . . . . . . . Traps Extracted . | . . . . . . . . . . . . . . . . Installed . | . . . . . . . . . . . . . . . . Triggered 1 | . . . . . . . . 1 . . . . . . . Machines | -11 -10 -10 -9 -9 -9 -8 -8 -7 -7 -7 -6 -5 -4 -4 -3 ---------- Run | Scr Mat Min Mat Min Exi Min Mat Fac Low Low Fac Fac Fac Upp Res Machines Disabled 8 | . . . . 4 . . 1 . . . . . 1 1 1 Max in Single Turn 1 | . . . . 1 . . 1 . . . . . 1 1 1 Garrison Access 1 | . . . . . . . . . . . 1 . . . . Machines Sabotaged . | . . . . . . . . . . . . . . . . Garrisons Compromised 1 | . . . . . . . . 1 . . . . . . . Overloaded Fab Kills . | . . . . . . . . . . . . . . . . Fab Network Shutdowns . | . . . . . . . . . . . . . . . . Hacking | -11 -10 -10 -9 -9 -9 -8 -8 -7 -7 -7 -6 -5 -4 -4 -3 --------- Run | Scr Mat Min Mat Min Exi Min Mat Fac Low Low Fac Fac Fac Upp Res Machines Accessed 26 | . 4 1 1 . 1 . 3 4 1 1 2 2 5 . 1 Terminals 20 | . 4 . 1 . . . 3 4 . . 1 2 4 . 1 Fabricators 1 | . . . . . . . . . . . . . 1 . . Repair Stations . | . . . . . . . . . . . . . . . . Recycling Units . | . . . . . . . . . . . . . . . . Scanalyzers . | . . . . . . . . . . . . . . . . Garrison Access 1 | . . . . . . . . . . . 1 . . . . Total Hacks 57 | . 12 1 3 . 1 . 7 8 1 1 5 6 10 . 2 Successful 21 | . 4 1 1 . 1 . 1 2 1 1 3 2 3 . 1 Failed 36 | . 8 . 2 . . . 6 6 . . 2 4 7 . 1 Catastrophic 8 | . 1 . 1 . . . 1 1 . . . 2 2 . . Database Lockouts . | . . . . . . . . . . . . . . . . Manual 34 | . 8 . 3 . 1 . 7 4 . . . 3 8 . . Terminals 50 | . 12 . 3 . . . 7 8 . . 3 6 9 . 2 Fabricators 1 | . . . . . . . . . . . . . 1 . . Repair Stations . | . . . . . . . . . . . . . . . . Recycling Units . | . . . . . . . . . . . . . . . . Scanalyzers . | . . . . . . . . . . . . . . . . Garrison Access 2 | . . . . . . . . . . . 2 . . . . Terminal Hacks 17 | . 4 1 1 . 1 . 1 1 1 1 1 2 2 . 1 Record 2 | . . . . . . . . . . . . . 1 . 1 Robot Analysis 2 | . 2 . . . . . . . . . . . . . . Prototype ID Bank 1 | . 1 . . . . . . . . . . . . . . Open Door 3 | . . 1 . . . . . . 1 1 . . . . . Branch Access Points 7 | . 1 . 1 . . . 1 1 . . 1 1 1 . . Unreport Threat 1 | . . . . . . . . . . . . 1 . . . EX-Prototype ID Bank 1 | . . . . . 1 . . . . . . . . . . Fabricator Hacks 1 | . . . . . . . . . . . . . 1 . . Network Status 1 | . . . . . . . . . . . . . 1 . . Repair Station Hacks . | . . . . . . . . . . . . . . . . Recycling Unit Hacks . | . . . . . . . . . . . . . . . . Scanalyzer . | . . . . . . . . . . . . . . . . Garrison Access Hacks 2 | . . . . . . . . . . . 2 . . . . Unlock Access 1 | . . . . . . . . . . . 1 . . . . Seal Access 1 | . . . . . . . . . . . 1 . . . . Unauthorized Hacks 1 | . . . . . . . . 1 . . . . . . . Terminals 1 | . . . . . . . . 1 . . . . . . . Assimilate 1 | . . . . . . . . 1 . . . . . . . Fabricators . | . . . . . . . . . . . . . . . . Repair Stations . | . . . . . . . . . . . . . . . . Recycling Units . | . . . . . . . . . . . . . . . . Scanalyzers . | . . . . . . . . . . . . . . . . Garrison Access . | . . . . . . . . . . . . . . . . Data Cores Recovered . | . . . . . . . . . . . . . . . . Used . | . . . . . . . . . . . . . . . . Hacking Detections 22 | . 4 . 1 . . . 3 4 . . 2 2 5 . 1 Full Trace Events 3 | . 1 . . . . . 1 1 . . . . . . . Feedback Events 1 | . . . . . . . . 1 . . . . . . . Corruption 1 | . . . . . . . . 1 . . . . . . . Feedback Blocked . | . . . . . . . . . . . . . . . . Robot Schematics Acquired . | . . . . . . . . . . . . . . . . Robots Built . | . . . . . . . . . . . . . . . . Matter . | . . . . . . . . . . . . . . . . Time . | . . . . . . . . . . . . . . . . Total Robot Build Rating . | . . . . . . . . . . . . . . . . Part Schematics Acquired . | . . . . . . . . . . . . . . . . Parts Built . | . . . . . . . . . . . . . . . . Matter . | . . . . . . . . . . . . . . . . Time . | . . . . . . . . . . . . . . . . Total Part Build Rating . | . . . . . . . . . . . . . . . . Parts Repaired . | . . . . . . . . . . . . . . . . Time . | . . . . . . . . . . . . . . . . Parts Recycled . | . . . . . . . . . . . . . . . . Recycled Matter . | . . . . . . . . . . . . . . . . Retrieved Matter . | . . . . . . . . . . . . . . . . Retrieved Components . | . . . . . . . . . . . . . . . . Parts Scanalyzed . | . . . . . . . . . . . . . . . . Part Schematics Acquired . | . . . . . . . . . . . . . . . . Parts Damaged . | . . . . . . . . . . . . . . . . Bothacking | -11 -10 -10 -9 -9 -9 -8 -8 -7 -7 -7 -6 -5 -4 -4 -3 ------------ Run | Scr Mat Min Mat Min Exi Min Mat Fac Low Low Fac Fac Fac Upp Res Used RIF Installer . | . . . . . . . . . . . . . . . . Robots Hacked . | . . . . . . . . . . . . . . . . Non-combat . | . . . . . . . . . . . . . . . . Combat . | . . . . . . . . . . . . . . . . Robot Hacks Applied . | . . . . . . . . . . . . . . . . Relay Couplers Released . | . . . . . . . . . . . . . . . . Robots Rewired . | . . . . . . . . . . . . . . . . Allies Hacked . | . . . . . . . . . . . . . . . . Hacks Repelled . | . . . . . . . . . . . . . . . . Allies | -11 -10 -10 -9 -9 -9 -8 -8 -7 -7 -7 -6 -5 -4 -4 -3 -------- Run | Scr Mat Min Mat Min Exi Min Mat Fac Low Low Fac Fac Fac Upp Res Total Allies 2 | . . 1 . . . . . . . . . . . 1 . Largest Group 1 | . . . . . . . . . . . . . . 1 . Highest-Rated Group 113 | . . . . . . . . . . . . . . 113 . Highest-Rated Ally 113 | . . . . . . . . . . . . . . 113 . Total Orders 13 | . . 4 . . . . . . 1 1 1 . . . 6 EXPLORE 12 | . . 3 . . . . . . 1 1 1 . . . 6 RETURN 1 | . . 1 . . . . . . . . . . . . . Ally Attacks 2 | . . 2 . . . . . . . . . . . . . Total Damage 6 | . . 6 . . . . . . . . . . . . . Kills . | . . . . . . . . . . . . . . . . Allies Corrupted . | . . . . . . . . . . . . . . . . Allies Melted . | . . . . . . . . . . . . . . . . Intel | -11 -10 -10 -9 -9 -9 -8 -8 -7 -7 -7 -6 -5 -4 -4 -3 ------- Run | Scr Mat Min Mat Min Exi Min Mat Fac Low Low Fac Fac Fac Upp Res Robot Analysis Total 2 | . 2 . . . . . . . . . . . . . . Derelict Logs Recovered 9 | . . 2 . 1 . . . . 3 1 . . . 2 . Drone Launches 12 | . . 3 . . . . . . 1 1 1 . . . 6 Drone Recoveries 8 | . . 3 . . . . . . 1 1 . . . . 3 Exploration | -11 -10 -10 -9 -9 -9 -8 -8 -7 -7 -7 -6 -5 -4 -4 -3 ------------- Run | Scr Mat Min Mat Min Exi Min Mat Fac Low Low Fac Fac Fac Upp Res Turns Passed 10511 | 86 302 415 197 503 437 752 567 1303 1061 788 476 294 1324 512 1494 Spaces Moved 6565 | 47 174 269 98 363 356 529 266 583 708 391 209 162 1104 451 855 Core 44 | 29 . . . . . . . . . . . . . . 15 Treads 288 | . . . . . . . . . . . 37 46 . . 205 Legs 4427 | 18 174 269 98 363 356 529 266 583 708 391 172 116 318 . 66 Wheels . | . . . . . . . . . . . . . . . . Hover 1770 | . . . . . . . . . . . . . 786 451 533 Flight 36 | . . . . . . . . . . . . . . . 36 Fastest Speed 34 | 50 120 120 120 120 120 120 120 120 120 120 120 120 46 70 34 Average Speed 122 | 147 124 120 120 120 120 120 132 191 135 186 144 131 88 92 88 Slowest Speed 400 | 200 200 120 120 120 120 120 200 200 200 200 200 200 280 230 400 Overloaded Moves . | . . . . . . . . . . . . . . . . Propulsion Burnouts . | . . . . . . . . . . . . . . . . Robots Hopped . | . . . . . . . . . . . . . . . . Cave-ins Triggered . | . . . . . . . . . . . . . . . . Exploration Rate (%) 40 | 4 33 74 14 63 70 92 27 16 95 48 10 8 25 57 16 Regions Visited 15 Branch Regions 7 Pre-discovered Areas 2 | . . 1 . . . . . . . 1 . . . . . Known Exits Taken 12 | . 1 . 1 1 1 1 1 1 1 1 1 1 1 . . Unknown Exits Taken 3 | 1 . 1 . . . . . . . . . . . 1 . Scrap Searched 13 | . . 1 . 1 . 2 . . 3 3 . . . 3 . Spaces Dug 22 | . . . . . . . . . 21 . . . 1 . . Terrain Destroyed 221 | . . 10 . 39 . 15 33 . 85 2 . 10 9 16 2 Melee . | . . . . . . . . . . . . . . . . Projectile 29 | . . . . . . . . . . 2 . . 9 16 2 AOE 192 | . . 10 . 39 . 15 33 . 85 . . 10 . . . Terrain Rammed . | . . . . . . . . . . . . . . . . Walls Destroyed . | . . . . . . . . . . . . . . . . Machines Disabled . | . . . . . . . . . . . . . . . . Actions | -11 -10 -10 -9 -9 -9 -8 -8 -7 -7 -7 -6 -5 -4 -4 -3 --------- Run | Scr Mat Min Mat Min Exi Min Mat Fac Low Low Fac Fac Fac Upp Res Total 8560 | 64 235 333 157 408 367 643 436 740 785 424 347 232 1397 515 1477 Wait 1136 | . 18 34 19 15 5 98 102 114 25 3 92 38 198 21 354 Move 6550 | 46 173 268 97 362 355 528 265 582 707 390 208 161 1103 450 855 Hop . | . . . . . . . . . . . . . . . . Pick Up 151 | 12 9 3 7 2 3 8 11 4 8 6 7 8 17 1 45 Fast Attach 40 | . 3 . . . . . . 2 1 . 1 1 9 1 22 Attach 111 | 6 2 . 3 1 . . 6 2 9 1 9 8 16 9 39 Detach 23 | . . . . 1 . . . . 4 . 3 1 8 2 4 Swap 51 | . 3 5 6 5 1 2 6 4 7 3 . 2 3 . 4 Drop 106 | . 10 5 7 4 3 2 8 6 7 5 5 4 10 6 24 Fire 365 | . 17 18 18 18 . 3 38 26 17 16 22 9 33 23 107 Melee . | . . . . . . . . . . . . . . . . Ram 2 | . . . . . . . . . . . . . . . 2 Kick . | . . . . . . . . . . . . . . . . Crush 20 | . . . . . . . . . . . . . . . 20 Escape Stasis . | . . . . . . . . . . . . . . . . Rewire 4 | . . . . . . 2 . . . . . . . 2 . Trap . | . . . . . . . . . . . . . . . . Miscellaneous 1 | . . . . . . . . . . . . . . . 1 Route ------- -11/Scrapyard -10/Materials -10/Mines -9/Materials (discovered 4 exits: *Min x2 / Sto x2) -9/Mines (discovered 2 exits: *Mat / *Exi) -9/Exiles -8/Mines -8/Materials -7/Factory (discovered 2 exits: *Low x2) -7/Lower Caves -7/Lower Caves -6/Factory (discovered 5 exits: *Fac / Low x2 / Ext x2) -5/Factory (discovered 3 exits: *Fac / Upp x2) -4/Factory (discovered 3 exits: *Upp x2 / Arm) -4/Upper Caves -3/Research History --------- Turn | Location | Event 2 | -11/Scrapyard | Met Revision 17 36 | -11/Scrapyard | Discovered new exit (range 14) 87 | -11/Scrapyard | Entered Materials 204 | -10/Materials | Identified exit to Mines 318 | -10/Materials | Build established: Mutant 389 | -10/Materials | Entered Mines 391 | -10/Mines | Core integrity fell below 50% 495 | -10/Mines | Found the Drone Emporium 504 | -10/Mines | Found Prototype Device 505 | -10/Mines | Identified Splice Drone Bay 666 | -10/Mines | Discovered new exit (range 41) 699 | -10/Mines | Learned Materials trap positions 764 | -10/Mines | Assembled infested the area 778 | -10/Mines | Learned location of Zion (-7) 804 | -10/Mines | Entered Materials 804 | -9/Materials | Evolved 2 slots: Propulsion x2 805 | -9/Materials | Loaded intel: 6 trap records 968 | -9/Materials | Identified exit to Mines 968 | -9/Materials | Identified exit to Storage 1001 | -9/Materials | Entered Mines 1005 | -9/Mines | Learned 2 Materials zone layouts 1020 | -9/Mines | Received a Rocket Launcher from a helpful Derelict 1108 | -9/Mines | Build established: Scavenger-Mutant 1150 | -9/Mines | Discovered new exit (range 5) 1499 | -9/Mines | Deemed a non-threat by the Exiles lab entrance 1499 | -9/Mines | Discovered new exit (range 5) 1503 | -9/Mines | Identified exit to Exiles 1504 | -9/Mines | Entered Exiles 1533 | -9/Exiles | Met 8R-AWN 1555 | -9/Exiles | Met EX-HEX 1604 | -9/Exiles | Met EX-DEC 1764 | -9/Exiles | Met EX-BIN 1781 | -9/Exiles | Aligned with FarCom system 1782 | -9/Exiles | Given EX-Vault access code 1811 | -9/Exiles | Opened EX-Vault 1816 | -9/Exiles | Found Prototype Ballistic Gun 1823 | -9/Exiles | Found Supersonic Drone Bay 1851 | -9/Exiles | Warned to stay clear of 0b10 Research branches 1863 | -9/Exiles | Exiles lab attacked by MAIN.C 1925 | -9/Exiles | Discovered new exit (range 10) 1934 | -9/Exiles | Identified exit to Mines 1941 | -9/Exiles | Left Exiles lab with Supersonic Drone Bay 1941 | -9/Exiles | Entered Mines 2687 | -8/Mines | Discovered new exit (range 5) 2692 | -8/Mines | Identified exit to Materials 2693 | -8/Mines | Entered Materials 2693 | -8/Materials | Evolved 2 slots: Utility x2 3257 | -8/Materials | Discovered new exit (range 3) 3258 | -8/Materials | Identified exit to Factory 3260 | -8/Materials | Entered Factory 3260 | -7/Factory | Evolved 2 slots: Utility x2 4038 | -7/Factory | Cargo convoy interrupted 4255 | -7/Factory | Identified exit to Lower Caves 4563 | -7/Factory | Entered Lower Caves 4589 | -7/Lower Caves | Spotted B-75 Beast 4954 | -7/Lower Caves | Destroyed B-75 Beast 5113 | -7/Lower Caves | Discovered new exit (range 105) 5170 | -7/Lower Caves | Learned Factory emergency access door positions 5206 | -7/Lower Caves | Learned Factory terminal intel 5231 | -7/Lower Caves | Encountered a Warlord checkpoint 5533 | -7/Lower Caves | Identified exit to Lower Caves 5624 | -7/Lower Caves | Entered another Lower Caves area 5628 | -7/Lower Caves | Learned location of Extension (-6) 5633 | -7/Lower Caves | Discovered new exit (range 12) 6140 | -7/Lower Caves | Encountered a Warlord checkpoint 6410 | -7/Lower Caves | Identified exit to Factory 6412 | -7/Lower Caves | Entered Factory 6412 | -6/Factory | Evolved 2 slots: Propulsion x1, Utility x1 6413 | -6/Factory | Identified exit to Lower Caves 6415 | -6/Factory | Loaded intel: 22 terminal locations 6436 | -6/Factory | Identified exit to Garrison 6651 | -6/Factory | Identified exit to Extension 6842 | -6/Factory | Discovered new exit (range 10) 6872 | -6/Factory | Identified exit to Factory 6888 | -6/Factory | Entered another Factory area 6888 | -5/Factory | Evolved 2 slots: Power x1, Propulsion x1 6944 | -5/Factory | Build established: Skirmisher 7001 | -5/Factory | Identified exit to Upper Caves 7094 | -5/Factory | Discovered new exit (range 12) 7147 | -5/Factory | Identified exit to Factory 7166 | -5/Factory | Lost 3 parts (2p1w) 7182 | -5/Factory | Entered another Factory area 7182 | -4/Factory | Evolved 2 slots: Utility x1, Weapon x1 7251 | -4/Factory | Build established: Scavenger-Skirmisher 7586 | -4/Factory | Lost 3 parts (2n1u) 8126 | -4/Factory | Identified exit to Upper Caves 8126 | -4/Factory | Identified exit to Armory 8506 | -4/Factory | Entered Upper Caves 8555 | -4/Upper Caves | Lost 3 parts (2n1u) 8849 | -4/Upper Caves | Learned Research terminal intel 8862 | -4/Upper Caves | Attracted the attention of an 0b10 outpost 8887 | -4/Upper Caves | System corruption reached 10% 8905 | -4/Upper Caves | Core integrity fell below 50% 8917 | -4/Upper Caves | System corruption reached 30% 8947 | -4/Upper Caves | Lost 11 parts (3n6u2w) 8964 | -4/Upper Caves | Core integrity fell below 20% 8976 | -4/Upper Caves | Learned Research emergency access door positions 8990 | -4/Upper Caves | CL-ANK showed up to help 8992 | -4/Upper Caves | CL-ANK revealed a hidden path 9018 | -4/Upper Caves | Entered Research 9018 | -3/Research | Evolved 2 slots: Propulsion x1, Utility x1 9020 | -3/Research | Loaded intel: 19 terminal locations 9203 | -3/Research | Build established: Mutant 9808 | -3/Research | System corruption reached 10% 9845 | -3/Research | Core integrity fell below 50% 9865 | -3/Research | Destroyed 9 combat bots 9890 | -3/Research | Lost 16 parts (1p6n4u5w) 9949 | -3/Research | Lost 3 parts (1p1n1w) 10095 | -3/Research | System corruption reached 30% 10142 | -3/Research | Lost 6 parts (2p1n1u2w) 10325 | -3/Research | Core integrity fell below 20% 10423 | -3/Research | Build established: Scavenger-Skirmisher 10512 | -3/Research | Destroyed by S-43 Plague with Heavy Machine Gun Last Messages --------------- 10479_ Plasma Rifle destroyed. 10482_ Imp. Antigrav System destroyed. 10483_ Dispersion Rifle destroyed. 10486_ System corrupted: Component data lost. 10495_ Slammed into S-43 Plague. 10495_ Destabilizing: System interference. 10495_ Dispersion Rifle temporarily disabled. 10495_ Adv. Target Analyzer temporarily disabled. 10496_ S-43 Plague destroyed. 10496_ Dropped Imp. Antigrav System. 10498_ Dropped Energy Well. 10499_ Adv. Force Field destroyed. 10500_ Adv. Heat Sink destroyed. 10501_ V6KP1RMAOREYQQT,CHQ YBL8G7QL YDY9IP 10501_ Antigrav Array destroyed. 10506_ Dropped Dispersion Rifle. 10506_ Q-thruster destroyed. 10507_ Acquired Particle Reactor. 10509_ Dispersion Rifle destroyed. 10511_ Gamma Rifle destroyed. Map ----- +----------------------------------------------------+ | ???# #######????#####+### | | ???# ## #????# ! | | ???# ## #????# | | ???# ## #????# | | ???# ## #????# """ " | | ???# ## #????# """ " | | ???# ## #????# """ " | | ???# ## #????# """ " | | ???# ## #????# """ " | | ???# [## #????# | | ???# !%%#####+###### | | ???# == + | | ???# ### w###### | | ???# #?# #????######### | | ???# #?# #????????????? | | ???#^#?# #????????????? | | ???#s#?# #????????????? | | ???# #?# #????????????? | | ???# #?# #????????????? | | ???# #?# ????????????? | | ####s### ???????????? | | # # ??????????? | | # s !# ??????????? | | # s # ?????????? | | # # ???????##?? | | # @ # ???????? ? | | # # ????????? ? | | # +????????????????? ? | | # #????????????????? ? | | # #????????????????? ? | | # #?????????????????# ? | | # #?????????????????# ? | | # #?????????????????# # | | # #?????????????????# | | ########?????????????????# | | ????????????############## | | ????????????# # | | ????????????? # | | ?????????????""" """ # | | ?????????????""" """ # | | ????????????#""" """ # | | ????????????#"S + | | ????????????#"" # | | ????????????#"" """ # | | ????????????# """ ### | | ????????????# """ #?? | | ????????????# #?? | | ????????????# ! #?? | | ??????????????####### ####?? | | ????????????????????######## | +----------------------------------------------------+ Best States ------------- Heat Dissipation 103 Energy Generation 37 Energy Capacity 745 Matter Stores 500 Matter Capacity 500 Sight Range 16 Robot Scan Range 16 Terrain Scan Density 10 ECM Strength 2 Cloak Strength 2 Additional Mass Support 9 Armor Coverage 750 Resistance: KI 25 Resistance: TH 20 Core Shielding 20 Propulsion Shielding 66 Weapon Shielding 33 Weapon Cycling 30 Evasion (%) 63 Targeting Accuracy 6 Target Analysis 8 Recoil Reduction 6 Stasis Canceling 1 Offensive Hacking 22 Defensive Hacking 11 Item Schematics ----------------- None Robot Schematics ------------------ None Fabricated ------------ Nothing Alien Tech Used ----------------- None Achievements -------------- Dangerous Findings Origins True Hacker Z1$+NX3F=JRE3_ZNQR Challenges ------------ None Game ------ Seed AerolevReinforcedMeganuke Manual? 0 Play Time 02:24:57 Cumulative 30.8 hours Start 2021.08.07 @ 11:44:32 End 2021.08.07 @ 14:15:58 Sessions 3 Manual Loads 0 Difficulty Rogue Special Mode None Game No. 43 Rogue 43 Adventurer 0 Explorer 0 Win Type - Total 0 Types 0/0/0/0/0/0/0/0/0 Lore% 24 Gallery% 30 Achievement% 21 Wizard Run 0 Options --------- ASCII 1 Keyboard 0 Movement Vi Keybinds 0 Fullscreen 2 Font 24/Smallcaps Map View 76x50 Tactical HUD 1 Map Filters NONE Filters NONE Steam 1 RUN: 3a3c0483-5ff9-4558-9d78-3339d301ed0e